bitfinex/quotes_ETHUSD_20250213
["timestamp","ask_amount","ask_price","bid_price","bid_amount"]
[1739439381340,0.4293508,2683.4,2683.0,3.72706]
[1739439381649,0.1493508,2683.4,2682.8,0.75]
[1739439381840,0.1493508,2683.4,2683.3,4.50385]
[1739439382207,0.1493508,2683.4,2683.3,1.227485]
[1739439382923,0.1493508,2683.4,2683.3,4.954235]
[1739439383823,0.1493508,2683.4,2683.3,4.99149841]
[1739439384357,0.1493508,2683.4,2683.3,4.954235]
[1739439385346,0.1493508,2683.4,2683.3,4.177135]
[1739439385664,0.1493508,2683.4,2683.3,4.929935]
[1739439386961,0.1493508,2683.4,2683.3,1.203185]
[1739439387158,0.1493508,2683.4,2683.3,4.929935]
[1739439391366,0.1493508,2683.4,2683.3,11.52691411]
[1739439395286,8e-07,2683.4,2683.3,11.52691411]
[1739439396352,4.4872,2684.5,2684.0,3.72571]
[1739439396547,4.4872,2684.5,2684.0,0.827722]
[1739439396749,3.72546,2684.3,2684.0,0.827722]
[1739439397987,4.48728,2684.5,2684.0,0.827722]
[1739439398322,3.72524,2684.4,2684.0,4.553482]
[1739439398632,4.48718,2684.5,2684.1,3.7255]
[1739439398772,4.48718,2684.5,2684.2,0.4553222]
[1739439398972,0.7621,2684.5,2684.2,0.4553222]
[1739439399200,4.48728,2684.5,2684.2,0.4553222]
[1739439399926,3.72533,2684.4,2684.2,0.4553222]
[1739439400094,0.7621,2684.5,2684.2,0.4553222]
[1739439400494,4.48721,2684.5,2684.2,0.4553222]
[1739439401348,0.7621,2684.5,2684.2,0.4553222]
[1739439401558,0.7621,2684.5,2684.3,0.41808422]
[1739439401700,4.49283,2684.7,2684.3,0.41808422]
[1739439402087,0.7679,2684.7,2684.3,0.41808422]
[1739439402305,3.72496,2684.6,2684.3,0.41808422]
[1739439402646,4.49278,2684.7,2684.3,0.41808422]
[1739439402853,3.72511,2684.5,2684.3,0.41808422]
[1739439402993,3.72511,2684.5,2684.0,3.72568]
[1739439403197,4.49278,2684.7,2684.1,3.72551]
[1739439403446,3.72505,2684.6,2684.1,3.72564]
[1739439403644,3.72514,2684.5,2684.0,3.72571]
[1739439404656,3.72517,2684.5,2684.0,3.72571]
[1739439404794,3.72504,2684.6,2684.1,4.480751]
[1739439405155,3.72504,2684.6,2684.1,0.755141]
[1739439405315,3.72515,2684.5,2684.1,4.480731]
[1739439405498,4.49273,2684.7,2684.1,4.480731]
[1739439405694,0.7679,2684.7,2684.3,3.72536]
[1739439405948,3.72496,2684.6,2684.2,4.5460231]
[1739439406112,3.72511,2684.5,2684.2,0.8206431]
[1739439406320,3.72531,2684.4,2684.1,0.755141]
[1739439406645,3.72528,2684.4,2684.1,0.755141]
[1739439406853,3.72503,2684.6,2684.1,0.755141]
[1739439407012,3.72503,2684.6,2684.2,3.72548]
[1739439407651,3.72494,2684.6,2684.1,4.480771]
[1739439407847,0.015,2684.6,2683.9,3.8257]
[1739439408003,0.015,2684.6,2683.9,4.5516]
[1739439408004,3.72535,2684.4,2683.9,4.5516]
[1739439408342,3.72544,2684.3,2683.9,0.8257]
[1739439408546,4.51745,2683.9,2683.4,0.7576]
[1739439408750,3.72608,2683.8,2683.5,0.4934735]
[1739439409113,3.7263,2683.7,2683.5,0.4934735]
[1739439409520,3.7263,2683.7,2683.2,3.72682]
[1739439409762,4.51749,2683.9,2683.4,3.0]
[1739439409908,3.72607,2683.8,2683.3,6.72664]
[1739439410104,4.50481,2684.1,2683.4,0.7581]
[1739439410352,0.7791,2684.1,2683.7,3.72617]
[1739439410666,4.50478,2684.1,2683.7,3.72617]
[1739439410873,3.72588,2684.0,2683.4,0.7581]
[1739439411009,3.72606,2683.8,2683.4,5.00753159]
[1739439411204,3.72588,2684.0,2683.4,5.00753159]
[1739439411205,3.72598,2683.9,2683.4,5.00753159]
[1739439411657,3.72607,2683.8,2683.4,1.28093159]
[1739439411902,0.8021,2683.7,2683.2,0.802]
[1739439412158,3.72643,2683.6,2683.2,0.802]
[1739439412465,7.45285,2683.6,2683.1,3.72694]
[1739439412604,4.5284,2683.7,2683.1,3.72695]
[1739439412803,0.8021,2683.7,2683.1,5.30053029]
[1739439413057,4.52837,2683.7,2683.1,9.02745029]
[1739439413205,4.52837,2683.7,2683.2,3.72688]
[1739439413411,0.8021,2683.7,2683.1,1.57358029]
[1739439413761,0.8021,2683.7,2683.3,3.72662]
[1739439414053,4.5283,2683.7,2683.3,3.72662]
[1739439414258,4.5283,2683.7,2683.2,3.72688]
[1739439414461,4.5283,2683.7,2683.2,3.72681]
[1739439416634,0.8021,2683.7,2683.2,3.72681]
[1739439416990,3.72634,2683.6,2683.2,3.72681]
[1739439417134,0.8021,2683.7,2683.3,3.72675]
[1739439417883,0.8021,2683.7,2683.4,3.72649]
[1739439418253,4.52832,2683.7,2683.2,7.45357]
[1739439418446,0.8021,2683.7,2683.3,4.54687353]
[1739439418646,0.8021,2683.7,2683.3,0.82015353]
[1739439418885,4.52837,2683.7,2683.2,3.72676]
[1739439419080,0.8021,2683.7,2683.3,3.72668]
[1739439419543,0.7987,2683.9,2683.3,3.72668]
[1739439419743,8.25061,2683.9,2683.4,0.7501]
[1739439419977,3.72609,2683.8,2683.4,4.47671]
[1739439420285,3.72625,2683.7,2683.2,4.54416]
[1739439420615,0.7611,2683.5,2683.1,3.74796529]
[1739439420780,0.7611,2683.5,2683.2,3.72687]
[1739439421320,3.72635,2683.6,2683.2,3.72687]
[1739439421321,0.8041,2683.7,2683.3,3.72667]
[1739439421533,0.8041,2683.7,2683.3,4.49257]
[1739439421667,4.5303,2683.7,2683.3,4.49257]
[1739439421872,4.5303,2683.7,2683.2,3.72689]
[1739439422073,3.72634,2683.6,2683.2,3.72689]
[1739439422496,3.72634,2683.6,2683.1,9.37007982]
[1739439422497,3.72653,2683.5,2683.1,5.64309982]
[1739439422824,0.2865,2684.0,2683.1,5.64309982]
[1739439422825,3.72543,2684.3,2683.5,0.8]
[1739439423129,0.8303,2685.5,2684.9,3.72453]
[1739439423277,0.005,2685.6,2684.9,3.83723996]
[1739439423474,0.005,2685.6,2685.5,3.7237]
[1739439423734,0.005,2685.6,2685.5,4.5237]
[1739439424241,0.005,2685.6,2685.5,4.56093109]
[1739439424381,0.005,2685.6,2685.5,9.47126993]
[1739439424786,0.005,2685.6,2684.9,0.18630818]
[1739439424978,0.005,2685.6,2685.3,3.72397]
[1739439425178,0.005,2685.6,2685.1,3.72421]
[1739439425379,3.7287,2685.6,2684.9,3.18630818]
[1739439425623,0.005,2685.6,2685.0,3.72429]
[1739439426399,0.005,2685.6,2685.2,3.72401]
[1739439426774,0.005,2685.6,2685.2,3.72408]
[1739439427180,0.005,2685.6,2685.2,3.0]
[1739439427403,0.005,2685.6,2685.5,3.7237]
[1739439427603,0.005,2685.6,2685.5,0.805]
[1739439428008,0.005,2685.6,2685.3,3.72397]
[1739439428209,0.005,2685.6,2685.4,0.751187]
[1739439429330,0.005,2685.6,2685.4,3.72379]
[1739439429537,0.005,2685.6,2685.3,7.44783]
[1739439429841,0.005,2685.6,2685.2,3.0]
[1739439430066,0.005,2685.6,2685.0,3.72437]
[1739439430272,0.005,2685.6,2684.9,4.53915159]
[1739439430419,0.7772,2685.5,2685.0,3.72431]
[1739439430765,4.50094,2685.5,2684.9,6.7244]
[1739439431069,3.72385,2685.4,2684.9,6.7244]
[1739439431226,3.72385,2685.4,2684.9,3.0]
[1739439431566,3.72417,2685.2,2684.9,4.03216491]
[1739439431866,3.72417,2685.2,2684.8,3.0]
[1739439432073,3.72385,2685.4,2684.8,3.0]
[1739439432370,3.724,2685.3,2684.8,3.0]
[1739439432520,4.50099,2685.5,2684.8,3.59697911]
[1739439432868,0.7772,2685.5,2685.1,3.72421]
[1739439433067,0.7772,2685.5,2684.9,3.35969791]
[1739439433246,4.5009,2685.5,2685.0,3.72438]
[1739439433452,0.7772,2685.5,2685.0,3.72438]
[1739439433771,4.50093,2685.5,2684.9,3.35969791]
[1739439434067,3.72384,2685.4,2684.9,3.35969791]
[1739439434419,4.5009,2685.5,2685.0,3.72437]
[1739439434748,3.7314,2685.4,2684.7,3.7248]
[1739439435023,3.72399,2685.3,2684.8,3.72458]
[1739439435684,3.72414,2685.2,2684.7,7.98446168]
[1739439436752,3.72414,2685.2,2684.7,4.25966168]
[1739439436950,3.7314,2685.4,2684.9,3.72451]
[1739439437154,3.7314,2685.4,2684.8,3.72466]
[1739439437485,3.72401,2685.3,2684.8,3.72459]
[1739439438002,3.72401,2685.3,2684.8,3.72454]
[1739439438585,7.4481,2685.3,2684.8,3.72454]
[1739439439091,3.72401,2685.3,2684.8,3.72454]
[1739439439588,3.72412,2685.2,2684.8,3.72454]
[1739439439791,3.72401,2685.3,2684.8,3.72454]
[1739439440132,0.294,2685.4,2684.3,0.7777]
[1739439440334,3.72456,2684.9,2684.4,4.16262791]
[1739439440576,4.53435,2685.1,2684.4,0.43746791]
[1739439440734,4.53435,2685.1,2684.6,6.72488]
[1739439440935,1.1085,2685.4,2684.6,3.0]
[1739439441136,3.72413,2685.2,2684.7,7.4495]
[1739439441389,1.1085,2685.4,2684.7,1.10464791]
[1739439441687,3.72432,2685.1,2684.7,1.10464791]
[1739439442181,3.72419,2685.2,2684.7,4.82944791]
[1739439442557,4.83245,2685.4,2684.7,1.10464791]
[1739439442767,4.83245,2685.4,2684.8,3.72459]
[1739439443074,3.72412,2685.2,2684.8,3.72459]
[1739439443262,3.72412,2685.2,2684.7,1.10464791]
[1739439443675,3.72428,2685.1,2684.7,1.10464791]
[1739439443883,3.72428,2685.1,2684.7,4.82943791]
[1739439444385,3.72418,2685.2,2684.7,1.10464791]
[1739439444590,3.72418,2685.2,2684.7,4.82931791]
[1739439444784,3.72427,2685.1,2684.7,4.82931791]
[1739439445106,3.72431,2685.1,2684.7,1.10464791]
[1739439445443,3.72431,2685.1,2684.7,4.82943791]
[1739439446200,7.44864,2685.1,2684.7,1.10464791]
[1739439446496,3.72431,2685.1,2684.7,1.10464791]
[1739439447489,3.72431,2685.1,2684.7,4.82944791]
[1739439447990,7.44866,2685.1,2684.7,1.44743737]
[1739439448154,3.72431,2685.1,2684.7,5.17223737]
[1739439449698,3.72431,2685.1,2684.7,1.44743737]
[1739439449987,3.72407,2685.3,2684.8,0.34278946]
[1739439450205,4.83243,2685.4,2684.9,3.72446]
[1739439450412,3.724,2685.3,2684.9,3.72446]
[1739439450767,1.101,2685.4,2684.9,3.72446]
[1739439450967,3.72404,2685.3,2684.9,3.72446]
[1739439451504,3.72404,2685.3,2684.8,2.02000874]
[1739439451665,3.72427,2685.1,2684.8,1.18970874]
[1739439452167,3.72427,2685.1,2684.6,7.54609]
[1739439452168,3.7804828,2685.1,2684.6,7.54609]
[1739439452700,3.7804828,2685.1,2684.9,0.3439166]
[1739439453258,3.72439,2685.0,2684.9,0.3439166]
[1739439453459,3.73189,2685.0,2684.9,0.3439166]
[1739439454208,3.7881028,2685.0,2684.9,0.3439166]
[1739439454406,3.72461,2684.9,2684.5,0.73844088]
[1739439454607,3.7881028,2685.0,2684.5,0.73844088]
[1739439454608,3.72483,2684.7,2684.5,1.26227397]
[1739439454804,3.72467,2684.8,2684.5,0.73844088]
[1739439454963,0.0562128,2684.8,2684.5,0.73844088]
[1739439455168,3.7810128,2684.8,2684.5,0.73844088]
[1739439455364,0.0562128,2684.8,2684.5,4.46352088]
[1739439455960,0.0562128,2684.8,2684.6,0.34454375]
[1739439456468,0.0562128,2684.8,2684.7,3.72481]
[1739439456711,0.0562128,2684.8,2684.7,4.52691]
[1739439457066,0.0562128,2684.8,2684.7,0.8021]
[1739439457783,0.0562128,2684.8,2684.7,1.14664375]
[1739439459820,0.0562128,2684.8,2684.7,0.34454375]
[1739439462608,3.7808828,2684.8,2684.7,0.34454375]
[1739439463293,0.0562128,2684.8,2684.7,0.34454375]
[1739439478920,0.0562128,2684.8,2684.7,5.00072176]
[1739439480500,0.0562128,2684.8,2684.7,1.27591176]
[1739439480841,0.0562128,2684.8,2684.7,5.00072176]
[1739439481778,0.0562128,2684.8,2684.7,1.27591176]
[1739439481985,0.0562128,2684.8,2684.7,5.00072176]
[1739439483353,0.0562128,2684.8,2684.7,1.27591176]
[1739439483666,0.0562128,2684.8,2684.7,0.34454375]
[1739439496672,2.8e-06,2684.8,2684.7,7.90255375]
[1739439496973,0.005,2685.9,2685.5,6.7237]
[1739439497104,0.005,2685.9,2685.8,11.11175911]
[1739439497299,0.005,2685.9,2685.8,0.7915]
[1739439497503,3.72328,2685.8,2685.3,0.7915]
[1739439497812,0.7983,2685.9,2685.4,6.72381]
[1739439498035,3.72336,2685.8,2685.3,1.243065]
[1739439498219,3.72342,2685.7,2685.3,3.0]
[1739439498615,3.72342,2685.7,2685.5,0.34454375]
[1739439499022,0.0075,2685.8,2685.5,0.34454375]
[1739439500469,0.0075,2685.8,2685.6,0.34454375]
[1739439500869,0.7983,2685.9,2685.6,0.34454375]
[1739439501573,0.005,2685.9,2685.6,0.75136713]
[1739439502170,0.005,2685.9,2685.6,0.40682338]
[1739439502669,3.72822,2685.9,2685.2,3.72406]
[1739439502877,3.72822,2685.9,2685.4,3.72383]
[1739439503173,0.005,2685.9,2685.5,3.72368]
[1739439503336,0.005,2685.9,2685.4,3.72383]
[1739439503537,0.005,2685.9,2685.5,3.72368]
[1739439503751,0.005,2685.9,2685.5,4.13035735]
[1739439504338,0.005,2685.9,2685.5,4.13030735]
[1739439504538,3.72815,2685.9,2685.5,0.40667735]
[1739439505095,0.005,2685.9,2685.5,4.13033735]
[1739439505258,0.005,2685.9,2685.6,3.72352]
[1739439505643,0.005,2685.9,2685.5,4.13033735]
[1739439505844,0.005,2685.9,2685.5,0.40667735]
[1739439506038,0.005,2685.9,2685.6,3.72343]
[1739439506237,0.005,2685.9,2685.4,0.8278]
[1739439506557,0.005,2685.9,2685.5,3.7237]
[1739439507138,0.005,2685.9,2685.5,3.72362]
[1739439507402,0.005,2685.9,2685.7,3.72335]
[1739439508143,0.005,2685.9,2685.8,3.72328]
[1739439508412,0.005,2685.9,2685.8,4.50598]
[1739439508868,0.005,2685.9,2685.8,11.10295911]
[1739439509245,0.005,2685.9,2685.8,11.44611757]
[1739439510597,0.005,2685.9,2685.8,12.18670923]
[1739439510780,0.005,2685.9,2685.8,10.22140113]
[1739439511071,0.005,2685.9,2685.8,1.97482947]
[1739439511209,0.005,2685.9,2685.8,0.34315846]
[1739439511918,0.005,2685.9,2685.8,4.06643846]
[1739439512462,0.005,2685.9,2685.8,4.53888]
[1739439512827,0.005,2685.9,2685.8,11.13585911]
[1739439514702,0.005,2685.9,2685.8,11.47901757]
[1739439514876,0.005,2685.9,2685.8,13.03992441]
[1739439515639,0.7727,2686.9,2686.8,3.72189]
[1739439515868,0.9531724,2687.1,2686.8,3.72181]
[1739439516067,0.1442724,2687.1,2687.0,3.72162]
[1739439516908,0.1442724,2687.1,2687.0,6.72162]
[1739439517093,0.1442724,2687.1,2687.0,9.02083391]
[1739439517306,3.72481,2688.4,2687.1,3.0]
[1739439517307,0.005,2688.4,2687.1,3.0]
[1739439517604,0.005,2688.4,2688.3,7.47082]
[1739439517890,0.7568,2689.3,2688.3,3.78818978]
[1739439518256,3.71941,2688.6,2688.1,3.59697911]
[1739439518428,3.71952,2688.6,2687.8,8.06845911]
[1739439518584,3.71952,2688.6,2687.8,0.751]
[1739439518585,3.72009,2688.2,2687.8,0.751]
[1739439518925,0.0075,2688.1,2687.3,0.76138311]
[1739439519238,3.72096,2687.5,2686.9,3.7217]
[1739439519369,4.48526,2687.5,2687.0,0.4662077]
[1739439519563,0.7643,2687.5,2686.8,0.751]
[1739439519885,0.7643,2687.5,2686.3,3.72997518]
[1739439519886,3.72175,2687.0,2686.3,3.72997518]
[1739439520268,3.72152,2687.1,2686.5,3.72229]
[1739439520468,0.7643,2686.9,2686.3,0.00744518]
[1739439520665,3.7219,2686.8,2686.3,0.00744518]
[1739439520887,0.7643,2686.9,2686.3,0.00744518]
[1739439520888,3.72212,2686.7,2686.3,0.00744518]
[1739439521084,3.72233,2686.5,2686.3,0.00744518]
[1739439521825,4.00098,2686.8,2686.3,0.00744518]
[1739439522054,3.7221,2686.7,2686.3,0.00744518]
[1739439522387,0.7643,2686.9,2686.3,0.00744518]
[1739439522583,0.7643,2686.9,2686.5,3.72228]
[1739439522784,0.7643,2686.9,2686.6,4.394308]
[1739439523002,0.7643,2686.9,2686.6,0.672228]
[1739439523544,0.7643,2686.9,2686.4,3.0]
[1739439523687,3.7219,2686.8,2686.4,3.0]
[1739439524040,3.72207,2686.7,2686.3,0.00744518]
[1739439524198,3.7219,2686.8,2686.3,0.00744518]
[1739439524399,3.7222,2686.6,2686.3,0.00744518]
[1739439524601,3.7224,2686.5,2686.3,0.00744518]
[1739439524842,3.72219,2686.6,2686.3,0.00744518]
[1739439525010,7.44402,2686.8,2686.3,0.00744518]
[1739439525339,3.72243,2686.5,2686.3,0.00744518]
[1739439525684,3.72242,2686.5,2686.3,0.00744518]
[1739439526687,3.72209,2686.7,2686.3,0.00744518]
[1739439526831,3.72231,2686.5,2686.3,0.00744518]
[1739439527035,3.72217,2686.6,2686.3,0.00744518]
[1739439527437,3.72242,2686.5,2686.3,0.00744518]
[1739439527644,3.7224,2686.5,2686.3,0.00744518]
[1739439527830,7.44479,2686.5,2686.3,0.00744518]
[1739439528152,3.72239,2686.5,2686.3,0.00744518]
[1739439528476,3.72245,2686.4,2686.3,0.00744518]
[1739439528645,3.72995,2686.4,2686.3,0.00744518]
[1739439528847,5.07115,2686.4,2686.3,0.00744518]
[1739439529034,3.73036,2686.1,2686.0,0.34116964]
[1739439529478,3.72314,2685.9,2685.8,0.34116964]
[1739439530663,3.72301,2686.0,2685.8,0.34116964]
[1739439531386,3.72322,2685.9,2685.4,3.34116964]
[1739439531559,3.72322,2685.9,2685.5,0.70650196]
[1739439531983,3.72328,2685.9,2685.5,0.70650196]
[1739439532203,3.72343,2685.7,2685.5,0.70650196]
[1739439532370,3.72343,2685.7,2685.4,0.34116964]
[1739439532862,3.72335,2685.8,2685.3,3.72387]
[1739439533060,0.0075,2686.1,2685.2,0.34116964]
[1739439533339,3.72349,2685.7,2685.2,0.34116964]
[1739439533656,3.72349,2685.7,2685.3,3.0]
[1739439533875,7.44704,2685.7,2685.3,4.14869388]
[1739439534070,3.72364,2685.6,2685.3,4.14869388]
[1739439534305,3.72367,2685.6,2685.3,4.14869388]
[1739439534463,3.72367,2685.6,2685.4,0.34116964]
[1739439534667,3.72346,2685.7,2685.4,0.34116964]
[1739439535003,3.72302,2686.0,2685.4,0.34116964]
[1739439535210,3.72356,2685.6,2685.4,0.34116964]
[1739439535385,0.0075,2686.1,2685.4,0.34116964]
[1739439535386,3.72343,2685.7,2685.4,0.79015599]
[1739439536095,3.72358,2685.6,2685.4,0.79015599]
[1739439536303,3.72358,2685.6,2685.4,0.44898635]
[1739439536981,7.44721,2685.6,2685.4,0.44898635]
[1739439537195,3.72358,2685.6,2685.3,4.14869388]
[1739439537821,3.72338,2685.8,2685.3,4.14869388]
[1739439538127,3.72352,2685.7,2685.3,4.14869388]
[1739439538805,3.7235,2685.7,2685.3,4.14869388]
[1739439539123,3.7237,2685.5,2685.4,0.78727439]
[1739439539323,3.7238,2685.5,2685.3,3.0]
[1739439539506,3.72384,2685.4,2685.3,3.0]
[1739439539882,4.28134,2685.4,2685.3,3.0]
[1739439540210,0.7885,2685.2,2684.6,0.56769083]
[1739439540386,0.279,2685.4,2685.0,3.72432]
[1739439540585,0.279,2685.4,2684.7,0.48974771]
[1739439540814,3.72426,2685.1,2684.7,4.21444771]
[1739439540991,3.72439,2685.0,2684.7,0.48974771]
[1739439541193,3.72481,2684.7,2684.6,0.56769083]
[1739439541781,4.28981,2684.7,2684.6,0.34183961]
[1739439542134,0.5575,2684.7,2684.6,0.34183961]
[1739439542638,4.28231,2684.7,2684.6,0.34183961]
[1739439542997,5.05571,2684.7,2684.6,0.34183961]
[1739439543597,3.72564,2684.1,2683.8,3.0]
[1739439543900,3.72592,2683.9,2683.8,0.672625]
[1739439544103,0.7659,2684.1,2683.6,3.72631]
[1739439544299,0.0075,2684.4,2683.4,3.59697911]
[1739439544655,0.8084,2684.8,2684.4,3.72509]
[1739439544860,0.279,2684.9,2684.5,3.72507]
[1739439545012,0.0075,2685.0,2684.8,3.72465]
[1739439545208,0.279,2685.1,2685.0,3.72439]
[1739439546139,0.279,2685.1,2684.9,7.32149911]
[1739439546418,0.279,2685.1,2684.8,3.0]
[1739439546617,0.279,2685.1,2684.8,6.72461]
[1739439546854,0.279,2685.1,2685.0,3.72439]
[1739439547154,0.795,2686.0,2685.0,6.72434]
[1739439547343,0.279,2685.8,2685.3,3.72384]
[1739439547544,4.00229,2685.8,2685.3,3.72384]
[1739439548041,0.279,2685.8,2685.2,3.72411]
[1739439548245,0.279,2685.8,2685.4,3.72381]
[1739439548414,0.279,2685.8,2685.5,3.72364]
[1739439548613,0.279,2685.8,2685.3,0.453471]
[1739439548923,0.279,2685.8,2685.3,4.177441]
[1739439549127,0.279,2685.8,2685.3,0.453471]
[1739439549326,3.72363,2685.6,2685.0,6.72429]
[1739439549530,3.72363,2685.6,2684.6,4.71743818]
[1739439549531,0.5575,2685.5,2684.6,1.12045907]
[1739439549713,0.2865,2685.8,2684.2,4.29308083]
[1739439549714,0.0075,2685.1,2684.2,4.29308083]
[1739439549910,4.50452,2685.4,2684.8,3.72453]
[1739439550241,0.279,2685.5,2685.1,3.72418]
[1739439550457,0.279,2685.5,2685.3,3.72397]
[1739439550609,0.5575,2685.7,2685.3,3.72397]
[1739439550813,0.279,2685.6,2685.5,3.7237]
[1739439551459,4.51099,2686.1,2685.4,3.72384]
[1739439551460,0.7806,2686.1,2685.4,3.72379]
[1739439551815,7.31939911,2686.5,2685.4,3.72379]
[1739439551816,4.7838,2686.5,2686.0,3.72292]
[1739439552060,0.7824,2686.5,2686.1,3.72286]
[1739439552358,3.72265,2686.3,2685.8,3.72328]
[1739439552525,3.72265,2686.3,2685.8,4.467955]
[1739439552717,3.72265,2686.3,2685.8,3.72328]
[1739439552918,3.72265,2686.3,2685.8,3.72318]
[1739439553353,0.0075,2686.4,2686.0,3.723]
[1739439554158,0.0075,2686.4,2686.0,3.72299]
[1739439554367,0.7824,2686.5,2686.2,3.72271]
[1739439554684,0.0075,2686.6,2686.0,3.72296]
[1739439554843,3.72968,2686.6,2686.0,4.095226]
[1739439555045,3.72269,2686.3,2685.8,3.7232]
[1739439555247,3.72269,2686.3,2685.8,3.0]
[1739439555571,0.0075,2686.6,2685.7,3.0]
[1739439555572,4.27218,2686.6,2685.7,3.0]
[1739439555949,3.72231,2686.5,2686.0,3.72293]
[1739439556404,4.00115,2686.7,2686.0,3.72293]
[1739439556605,3.72213,2686.7,2686.2,3.72265]
[1739439556774,7.44428,2686.7,2686.1,4.095083]
[1739439556976,5.28,2686.8,2686.1,0.372293]
[1739439557208,9.002,2686.8,2686.2,3.72273]
[1739439557494,9.002,2686.8,2686.3,3.72257]
[1739439557902,5.28,2686.8,2686.1,3.72281]
[1739439558116,9.00196,2686.8,2686.3,3.72252]
[1739439558293,5.28,2686.8,2686.2,0.7532]
[1739439558499,6.1,2686.9,2686.2,0.7532]
[1739439558706,0.0075,2686.8,2686.5,3.0]
[1739439558921,0.0075,2686.8,2686.5,6.72231]
[1739439559216,0.00740585,2686.7,2686.5,6.72231]
[1739439559513,0.00740585,2686.7,2686.5,3.0]
[1739439560378,3.72943585,2686.7,2686.5,3.0]
[1739439560574,0.00740585,2686.7,2686.1,3.0]
[1739439560779,0.00740585,2686.7,2686.3,3.0]
[1739439560979,0.00740585,2686.7,2686.3,6.72257]
[1739439561181,0.00740585,2686.7,2686.2,3.7226]
[1739439561182,0.00740585,2686.7,2686.2,3.0]
[1739439561432,0.00740585,2686.7,2686.5,3.72222]
[1739439561730,0.00740585,2686.7,2686.5,3.72219]
[1739439562579,0.00740585,2686.7,2686.6,3.72217]
[1739439563415,0.00740585,2686.7,2686.5,3.72219]
[1739439563829,0.00740585,2686.7,2686.6,3.72217]
[1739439563976,0.00740585,2686.7,2686.5,4.094409]
[1739439564341,0.00740585,2686.7,2686.6,3.72217]
[1739439564494,0.00740585,2686.7,2686.4,0.8248]
[1739439564495,0.00740585,2686.7,2686.4,3.72233]
[1739439564681,0.00740585,2686.7,2686.4,3.0]
[1739439564886,0.00740585,2686.7,2686.4,6.72243]
[1739439565410,0.00740585,2686.7,2686.5,3.72225]
[1739439565586,0.00740585,2686.7,2686.6,1.044468]
[1739439565787,0.00740585,2686.7,2686.4,6.72238]
[1739439565990,0.00740585,2686.7,2686.4,3.0]
[1739439567324,0.00740585,2686.7,2686.1,4.54756]
[1739439567325,3.72219,2686.6,2686.3,3.0]
[1739439567526,4.49247,2686.6,2686.2,3.0]
[1739439567730,3.72239,2686.5,2686.1,3.0]
[1739439567941,0.7702,2686.6,2686.1,4.11804344]
[1739439568135,4.49238,2686.6,2686.1,4.11804344]
[1739439568342,0.7702,2686.6,2686.3,3.72252]
[1739439568543,0.7702,2686.6,2686.4,6.72244]
[1739439568747,0.7702,2686.6,2686.5,3.72231]
[1739439569099,0.7702,2686.6,2686.4,3.0]
[1739439569502,0.7702,2686.6,2686.3,3.0]
[1739439569916,0.7702,2686.6,2686.3,6.72252]
[1739439570657,4.49246,2686.6,2686.1,4.11804344]
[1739439570964,3.72231,2686.5,2686.1,4.11804344]
[1739439571208,3.72231,2686.5,2686.1,1.11804344]
[1739439571371,3.72247,2686.4,2685.9,0.73451442]
[1739439571574,3.72247,2686.4,2685.9,3.72307]
[1739439571776,3.72247,2686.4,2685.8,3.0]
[1739439571977,3.73033,2686.2,2685.7,3.72337]
[1739439572415,4.54966,2686.1,2685.6,3.72348]
[1739439572563,4.54966,2686.1,2685.6,4.544359]
[1739439573015,0.8268,2686.1,2685.7,6.72334]
[1739439573222,0.8268,2686.1,2685.8,3.72326]
[1739439573876,0.8268,2686.1,2685.7,3.72339]
[1739439574257,0.8268,2686.1,2685.8,3.72321]
[1739439574457,4.54967,2686.1,2685.6,7.544369]
[1739439574807,4.54967,2686.1,2685.7,1.27574586]
[1739439575020,4.54967,2686.1,2685.7,7.99916586]
[1739439575181,0.8268,2686.1,2685.8,3.7232]
[1739439575588,0.8268,2686.1,2685.7,4.27574586]
[1739439575785,0.8268,2686.1,2685.7,7.99909586]
[1739439575992,0.8268,2686.1,2685.8,1.17225259]
[1739439576175,0.8268,2686.1,2685.8,4.89551259]
[1739439576771,0.00740585,2686.7,2685.8,4.17225259]
[1739439576975,3.72218,2686.6,2686.2,3.72262]
[1739439577170,3.72228,2686.6,2685.9,3.72305]
[1739439577372,0.0075,2686.5,2685.8,1.17225259]
[1739439577613,0.5575,2686.3,2685.8,3.0]
[1739439577926,3.72279,2686.2,2685.8,3.0]
[1739439578286,0.5575,2686.3,2685.5,5.21309964]
[1739439578512,3.72313,2686.0,2685.5,4.45139964]
[1739439578794,3.73037,2686.1,2685.7,3.0]
[1739439579011,0.0075,2686.1,2685.7,3.72338]
[1739439579215,0.0075,2686.1,2685.8,3.72319]
[1739439579369,0.0075,2686.2,2685.8,3.72319]
[1739439579708,0.0075,2686.2,2685.8,3.7232]
[1739439579910,0.0075,2686.2,2685.8,7.44639]
[1739439580115,0.0075,2686.2,2685.8,3.72319]
[1739439580290,3.72295,2686.1,2685.7,3.0]
[1739439580623,3.72307,2686.0,2685.7,3.0]
[1739439583093,3.72307,2686.0,2685.4,3.72379]
[1739439583094,3.72335,2685.8,2685.4,3.72379]
[1739439583282,3.72324,2685.9,2685.4,3.72379]
[1739439583487,3.7233,2685.8,2685.4,3.72379]
[1739439584126,0.0075,2685.8,2685.2,0.56769083]
[1739439584428,3.72357,2685.6,2685.2,3.7241]
[1739439584597,3.72357,2685.6,2685.3,3.37241]
[1739439584798,4.52453,2685.7,2685.3,3.37241]
[1739439585126,3.72365,2685.6,2685.3,0.37241]
[1739439585280,3.72365,2685.6,2685.1,6.72419]
[1739439585485,3.72365,2685.6,2685.3,3.0]
[1739439586214,3.7243,2685.1,2684.8,0.56769083]